bitfinex-derivatives/quotes_SOLF0:USTF0_20250529
["timestamp","ask_amount","ask_price","bid_price","bid_amount"]
[1748545907870,5.9708,167.46,167.44,0.04212132]
[1748545908261,0.03918903,167.47,167.44,6.01332132]
[1748545908468,0.03918903,167.47,167.44,0.04212132]
[1748545910270,6.00958903,167.47,167.44,6.01322132]
[1748545910673,6.00958903,167.47,167.44,0.04212132]
[1748545910871,6.00958903,167.47,167.44,6.01322132]
[1748545911171,5.9706,167.46,167.44,0.04212132]
[1748545911361,0.03918903,167.47,167.44,0.04212132]
[1748545911965,5.9709,167.45,167.44,0.04212132]
[1748545913772,5.972,167.42,167.41,34.34]
[1748545914074,40.1755,167.46,167.33,1.9181]
[1748545914284,40.1755,167.46,167.36,34.26]
[1748545914475,5.9725,167.41,167.36,34.26]
[1748545914780,0.03876727,167.4,167.38,5.9733]
[1748545915380,0.03876727,167.4,167.37,0.03768934]
[1748545916582,0.03876727,167.4,167.38,5.9734]
[1748545916788,0.03876727,167.4,167.37,0.03768934]
[1748545917785,5.9734,167.38,167.37,0.03768934]
[1748545918183,0.03876727,167.4,167.32,34.26]
[1748545918988,5.9735,167.38,167.35,5.9742]
[1748545919184,5.9735,167.38,167.35,6.01822344]
[1748545920085,0.03876727,167.4,167.35,0.04402344]
[1748545921691,5.9736,167.38,167.35,6.01842344]
[1748545922488,0.03876727,167.4,167.35,0.04402344]
[1748545922889,5.9731,167.39,167.36,5.9739]
[1748545923191,0.03876727,167.4,167.35,0.04402344]
[1748545923693,5.9739,167.37,167.35,0.04402344]
[1748545923893,0.03876727,167.4,167.35,0.04402344]
[1748545924090,0.03876727,167.4,167.35,6.01822344]
[1748545924286,0.03876727,167.4,167.35,0.04402344]
[1748545924498,5.9758,167.32,167.29,5.9764]
[1748545924682,34.26,167.38,167.29,5.9764]
[1748545924882,1.03997012,167.49,167.28,34.26]
[1748545924883,38.1954,167.37,167.28,34.26]
[1748545925593,0.0455936,167.34,167.31,0.04397286]
[1748545925986,6.0204936,167.34,167.31,6.01977286]
[1748545926303,0.0455936,167.34,167.31,0.04397286]
[1748545927493,0.0455936,167.34,167.23,516.12]
[1748545927494,34.26,167.33,167.23,34.26]
[1748545928399,0.04079544,167.3,167.29,5.9764]
[1748545928899,0.04079544,167.3,167.28,5.9769]
[1748545929095,0.04079544,167.3,167.26,0.03986714]
[1748545929295,6.01709544,167.3,167.27,5.9773]
[1748545929599,0.04079544,167.3,167.26,0.03986714]
[1748545929795,6.01709544,167.3,167.26,6.01746714]
[1748545930189,0.04079544,167.3,167.26,6.01746714]
[1748545930500,6.01709544,167.3,167.26,6.01746714]
[1748545930687,0.04079544,167.3,167.26,0.03986714]
[1748545931204,0.04079544,167.3,167.28,5.9766]
[1748545931693,0.04079544,167.3,167.26,0.03986714]
[1748545932491,0.04079544,167.3,167.27,34.28]
[1748545932692,38.2154,167.37,167.27,36.3449]
[1748545932902,516.2,167.39,167.27,36.3449]
[1748545932903,34.28,167.41,167.28,2.0095]
[1748545933091,34.28,167.41,167.28,4.0684]
[1748545933296,5.9737,167.38,167.33,5.9751]
[1748545933492,34.28,167.41,167.33,5.9751]
[1748545933699,0.0456516,167.39,167.35,0.04120811]
[1748545934397,5.9741,167.36,167.35,0.04120811]
[1748545934896,5.9752,167.34,167.32,34.28]
[1748545935097,34.28,167.41,167.28,34.28]
[1748545935398,5.9753,167.33,167.3,5.976]
[1748545935802,5.9753,167.33,167.3,6.02088988]
[1748545935803,6.01653431,167.33,167.3,6.02088988]
[1748545936804,5.9756,167.32,167.3,0.04488988]
[1748545937001,0.04123431,167.33,167.3,0.04488988]
[1748545937499,6.01663431,167.33,167.3,0.04488988]
[1748545937701,0.04123431,167.33,167.3,0.04488988]
[1748545938709,0.04123431,167.33,167.31,5.9757]
[1748545939208,0.04123431,167.33,167.3,0.04488988]
[1748545939804,0.04123431,167.33,167.31,5.9758]
[1748545940009,0.04123431,167.33,167.3,0.04488988]
[1748545940508,0.04123431,167.33,167.3,6.02098988]
[1748545940907,0.04123431,167.33,167.3,0.04488988]
[1748545941300,5.9759,167.31,167.3,0.04488988]
[1748545941498,34.18,167.32,167.24,34.18]
[1748545941906,34.18,167.32,167.2,36.0839]
[1748545942110,34.18,167.32,167.2,34.18]
[1748545942309,50.8102498,167.32,167.2,34.18]
[1748545942500,5.9786,167.24,167.21,5.9795]
[1748545942809,6.02392134,167.24,167.21,5.9795]
[1748545943704,0.04532134,167.24,167.2,34.18]
[1748545944011,0.04532134,167.24,167.16,550.48]
[1748545945097,0.04532134,167.24,167.23,5.9788]
[1748545945710,0.04532134,167.24,167.22,5.979]
[1748545945903,0.04532134,167.24,167.16,550.48]
[1748545947212,0.04532134,167.24,167.23,5.9788]
[1748545947699,0.04532134,167.24,167.2,34.18]
[1748545947905,0.04532134,167.24,167.22,5.9789]
[1748545948512,0.04532134,167.24,167.21,5.9794]
[1748545948710,0.04532134,167.24,167.2,34.18]
[1748545949210,0.04532134,167.24,167.16,34.18]
[1748545949607,5.979,167.23,167.16,34.18]
[1748545949803,0.04532134,167.24,167.16,34.18]
[1748545950217,5.9792,167.22,167.18,5.9804]
[1748545950910,5.9796,167.21,167.18,5.9804]
[1748545951407,0.04532134,167.24,167.18,5.9804]
[1748545951612,34.24532134,167.24,167.18,5.9804]
[1748545952112,5.9794,167.22,167.18,5.9804]
[1748545952312,34.24532134,167.24,167.16,34.18]
[1748545952913,5.7533,167.23,167.16,40.161]
[1748545953208,5.9802,167.2,167.16,40.161]
[1748545953412,0.04243512,167.2,167.16,40.161]
[1748545953615,0.04243512,167.2,167.16,5.981]
[1748545953811,6.02233512,167.2,167.16,5.981]
[1748545954009,6.02233512,167.2,167.17,5.9808]
[1748545954317,5.9804,167.19,167.12,36.2217]
[1748545954504,0.04243512,167.2,167.17,5.9808]
[1748545955114,6.02243512,167.2,167.17,5.9808]
[1748545955818,5.9802,167.19,167.12,36.2217]
[1748545956207,0.04243512,167.2,167.16,5.981]
[1748545956611,0.04243512,167.2,167.12,36.2217]
[1748545956812,6.02233512,167.2,167.12,36.2217]
[1748545957012,0.04243512,167.2,167.12,36.2217]
[1748545957606,5.9808,167.18,167.15,5.9814]
[1748545957809,0.04243512,167.2,167.12,36.2217]
[1748545958010,34.24243512,167.2,167.12,34.2]
[1748545958605,5.9815,167.16,167.13,5.9823]
[1748545958815,6.02686893,167.16,167.13,5.9823]
[1748545959815,0.04536893,167.16,167.14,5.9819]
[1748545960207,0.04536893,167.16,167.12,34.2]
[1748545960410,6.02666893,167.16,167.13,5.9822]
[1748545960811,0.04536893,167.16,167.12,34.2]
[1748545961209,5.9817,167.15,167.12,40.1825]
[1748545961415,5.9817,167.15,167.12,5.9825]
[1748545961619,0.04536893,167.16,167.13,5.9822]
[1748545961815,0.04536893,167.16,167.1,2.1095]
[1748545962920,5.9818,167.15,167.12,5.9825]
[1748545963115,0.04536893,167.16,167.1,2.1095]
[1748545963612,0.04536893,167.16,167.14,5.9819]
[1748545963811,0.04536893,167.16,167.1,2.1095]
[1748545966119,0.04536893,167.16,167.12,5.9824]
[1748545966514,0.04536893,167.16,167.12,34.22]
[1748545967019,0.04536893,167.16,167.15,5.9816]
[1748545967217,0.04536893,167.16,167.12,34.22]
[1748545967916,0.04536893,167.16,167.15,5.9816]
[1748545968516,0.04536893,167.16,167.14,5.9819]
[1748545969512,0.04536893,167.16,167.15,5.9816]
[1748545969714,0.04536893,167.16,167.12,34.22]
[1748545970120,5.9817,167.15,167.08,550.86]
[1748545970326,0.04536893,167.16,167.08,550.86]
[1748545972023,0.04536893,167.16,167.13,5.9821]
[1748545972720,0.04536893,167.16,167.08,550.86]
[1748545973116,6.02666893,167.16,167.07,1.9284]
[1748545973319,697.1302498,167.15,166.96,3.51214951]
[1748545973515,686.4801,167.15,166.92,3.8505]
[1748545973717,0.04253397,167.1,166.92,3.8505]
[1748545973915,44.18,167.09,166.92,3.8505]
[1748545974124,5.986,167.03,166.92,3.8505]
[1748545974318,44.18,167.02,166.92,1.9135]
[1748545974525,45.88,167.02,166.92,1.9135]
[1748545974726,0.04284159,166.99,166.89,1.937]
[1748545974921,0.04284159,166.99,166.89,4.018]
[1748545978020,300.0,166.98,166.58,17.87]
[1748545978329,0.03891474,166.8,166.59,563.06]
[1748545978627,0.04219371,166.71,166.59,6.1094]
[1748545978930,16.7123419,166.84,166.63,0.03920332]
[1748545979226,45.9,166.86,166.59,149.6494]
[1748545979227,16.7123419,166.8,166.64,45.9]
[1748545979431,45.9,166.86,166.65,45.9]
[1748545979629,16.7123419,166.81,166.66,45.9]
[1748545979816,0.03805681,166.75,166.72,0.03920332]
[1748545980017,0.04609848,166.75,166.6,2.0406]
[1748545980230,45.9,166.81,166.61,45.9]
[1748545980432,27.54815996,166.78,166.61,45.9]
[1748545980924,27.54815996,166.78,166.62,62.0]
[1748545981226,0.04084214,166.72,166.62,62.0]
[1748545981535,0.03773212,166.69,166.62,62.0]
[1748545981729,0.04252345,166.67,166.62,62.0]
[1748545981925,0.04510638,166.66,166.62,62.0]
[1748545982129,0.04396185,166.66,166.63,5.9998]
[1748545982426,143.08,166.88,166.62,68.0]
[1748545982427,45.94,166.88,166.62,68.0]
[1748545982628,2.1023,166.87,166.63,45.94]
[1748545982829,27.54815996,166.81,166.63,45.94]
[1748545983124,5.9978,166.7,166.62,62.0]
[1748545983427,5.9978,166.7,166.64,0.04236416]
[1748545983428,0.04240923,166.68,166.64,0.04236416]
[1748545984229,0.04240923,166.68,166.64,47.60236416]
[1748545984839,27.54815996,166.79,166.64,47.60236416]
[1748545985028,27.54815996,166.79,166.62,47.56]
[1748545985326,73.48815996,166.82,166.66,5.999]
[1748545985533,73.48815996,166.82,166.67,47.56]
[1748545985831,0.04006419,166.76,166.73,0.04498513]
[1748545986828,5.9962,166.74,166.73,0.04498513]
[1748545987022,11.969,167.07,166.73,523.74498513]
[1748545987222,27.50152852,167.0,166.74,65.9834]
[1748545987420,27.50152852,166.96,166.74,113.5434]
[1748545987626,49.5423,166.95,166.77,27.50152852]
[1748545987921,49.5423,166.95,166.82,5.9933]
[1748545988228,0.04443535,166.9,166.87,0.04215609]
[1748545988434,0.04482895,166.9,166.87,0.04519378]
[1748545988727,5.9908,166.89,166.87,0.04519378]
[1748545988925,0.04482895,166.9,166.87,0.04519378]
[1748545989323,5.9912,166.88,166.87,0.04519378]
[1748545990728,6.0,166.88,166.75,1.9485]
[1748545990932,6.0,166.88,166.56,12.0048]
[1748545990933,47.56,166.89,166.65,565.36]
[1748545991128,27.49783251,166.84,166.67,4.0413]
[1748545991330,47.56,166.83,166.69,27.49783251]
[1748545991732,0.04434069,166.78,166.74,0.03841729]
[1748545991935,0.04489796,166.78,166.74,49.23907107]
[1748545992135,49.2,166.88,166.74,49.23907107]
[1748545992438,49.2,166.88,166.74,55.1962]
[1748545992637,49.2,166.88,166.71,27.49783251]
[1748545992937,49.2,166.88,166.7,517.8]
[1748545993139,0.03850519,166.81,166.77,0.03975041]
[1748545993327,5.9944,166.8,166.77,0.04433846]
[1748545993533,0.03850519,166.81,166.77,0.04433846]
[1748545993932,5.9948,166.78,166.77,0.04433846]
[1748545994334,0.03850519,166.81,166.68,1.961]
[1748545994641,49.2,166.82,166.69,27.49783251]
[1748545995241,0.04301437,166.77,166.74,0.042115]
[1748545996142,5.9959,166.75,166.74,0.042115]
[1748545997136,5.9959,166.75,166.74,1.5e-05]
[1748545997342,5.9959,166.75,166.4,385.0411]
[1748545997343,6.0,166.75,166.61,49.2]
[1748545997643,49.2,166.76,166.61,49.2]
[1748545997845,49.2,166.76,166.63,27.49783251]
[1748545998344,5.9977,166.7,166.68,0.03968598]
[1748545998543,0.03806951,166.71,166.68,0.03968598]
[1748545998744,5.998,166.69,166.68,0.03968598]
[1748545998949,0.03806951,166.71,166.68,0.03968598]
[1748545999241,5.998,166.69,166.68,0.03968598]
[1748545999443,0.03806951,166.71,166.68,0.03968598]
[1748545999841,6.03566951,166.71,166.68,0.03968598]
[1748546000239,0.03806951,166.71,166.68,0.03968598]
[1748546001341,0.03806951,166.71,166.58,6.1397]
[1748546001539,49.2,166.76,166.59,49.22]
[1748546001735,5.9998,166.64,166.59,49.22]
[1748546001939,49.2,166.76,166.59,49.22]
[1748546002347,6.0,166.64,166.59,49.22]
[1748546002544,0.04372221,166.63,166.59,49.22]
[1748546002852,0.04372221,166.63,166.52,62.0]
[1748546002853,6.0023,166.58,166.51,55.2242]
[1748546003037,0.04238491,166.56,166.53,2.0322]
[1748546003251,0.04205774,166.56,166.53,2.0322]
[1748546003444,0.04205774,166.56,166.45,49.22]
[1748546003651,0.04547881,166.52,166.48,2.0772]
[1748546003845,0.03926016,166.52,166.51,6.0045]
[1748546004053,49.22,166.61,166.51,49.22]
[1748546004346,49.22,166.66,166.51,55.2245]
[1748546004545,49.22,166.66,166.48,2.0772]
[1748546005145,0.03914096,166.59,166.55,0.04016807]
[1748546006046,0.03914096,166.59,166.55,6.04316807]
[1748546006249,0.03914096,166.59,166.55,0.04016807]
[1748546007842,0.03914096,166.59,166.58,6.002]
[1748546008640,0.03914096,166.59,166.55,0.04016807]
[1748546010152,0.03914096,166.59,166.49,1.9794]
[1748546010353,49.26,166.61,166.44,49.26]
[1748546010957,2.0308,166.6,166.44,49.26]
[1748546011151,0.04076415,166.54,166.44,49.26]
[1748546011459,2.0308,166.6,166.45,27.58712284]
[1748546011749,2.0308,166.6,166.42,518.36]
[1748546011750,2.1128,166.59,166.42,518.36]
[1748546011952,3.2448,166.59,166.42,518.36]
[1748546012151,6.0045,166.52,166.42,518.36]
[1748546012453,0.0418645,166.49,166.46,6.006]
[1748546012648,0.04381458,166.49,166.46,0.03893564]
[1748546014159,2.1128,166.59,166.46,49.31893564]
[1748546014355,6.0028,166.56,166.46,49.28]
[1748546014658,49.26,166.6,166.52,6.004]
[1748546014954,6.0028,166.56,166.46,49.28]
[1748546015249,0.04246364,166.53,166.49,0.04364988]
[1748546015454,0.04246364,166.53,166.49,0.04357859]
[1748546015650,0.04246364,166.53,166.52,6.0042]
[1748546016348,50.4151,166.65,166.52,49.28]
[1748546016951,6.0027,166.57,166.52,55.2841]
[1748546017149,0.03920535,166.56,166.53,0.04095059]
[1748546017357,0.03901392,166.56,166.53,0.04421115]
[1748546018055,0.03901392,166.56,166.53,6.04771115]
[1748546018255,0.03901392,166.56,166.53,0.04421115]
[1748546019457,0.03901392,166.56,166.55,6.0031]
[1748546019957,0.03901392,166.56,166.53,0.04421115]
[1748546020458,6.0035,166.54,166.53,0.04421115]
[1748546020653,0.03901392,166.56,166.53,0.04421115]
[1748546021456,6.04181392,166.56,166.53,0.04421115]
[1748546021756,0.03901392,166.56,166.53,0.04421115]
[1748546021954,0.03901392,166.56,166.54,6.0033]
[1748546022453,0.03901392,166.56,166.53,6.04771115]
[1748546022657,0.03901392,166.56,166.53,0.04421115]
[1748546023456,0.03901392,166.56,166.54,6.0034]
[1748546024560,0.03901392,166.56,166.53,6.04791115]
[1748546024759,0.03901392,166.56,166.53,0.04421115]
[1748546025659,530.075,166.71,166.53,0.04421115]
[1748546025962,546.82100881,166.71,166.51,66.02600881]
[1748546026363,6.0011,166.61,166.56,6.0024]
[1748546026565,6.0011,166.61,166.57,48.66]
[1748546026865,0.03983111,166.61,166.57,48.6986496]
[1748546027057,6.0018,166.59,166.57,48.6986496]
[1748546027255,0.03983111,166.61,166.57,48.6986496]
[1748546027859,0.03983111,166.61,166.57,54.7008496]
[1748546029154,0.03983111,166.61,166.57,48.6986496]
[1748546030370,0.03983111,166.61,166.57,54.7008496]
[1748546030656,0.03983111,166.61,166.57,48.6986496]
[1748546030858,0.03983111,166.61,166.58,6.0018]
[1748546031159,0.03983111,166.61,166.57,48.6986496]
[1748546031358,2.0349,166.7,166.57,48.6986496]
[1748546031560,16.74600881,166.74,166.63,5.9999]
[1748546031864,16.74600881,166.74,166.58,4.0083]
[1748546032260,3.2519,166.75,166.58,4.0083]
[1748546032457,0.04117056,166.67,166.64,0.03850129]
[1748546032655,0.04117056,166.67,166.64,48.69850129]
[1748546032869,1.9938,166.75,166.64,48.69850129]
[1748546033164,1.9938,166.75,166.64,48.66]
[1748546033368,5.9973,166.72,166.64,48.66]
[1748546033558,1.9938,166.75,166.64,48.66]
[1748546033760,0.04001273,166.71,166.68,0.04596273]
[1748546034970,5.9977,166.7,166.68,0.04596273]
[1748546035467,5.9981,166.69,166.68,0.04596273]
[1748546036368,6.0002,166.64,166.6,47.08]
[1748546036669,16.74600881,166.73,166.6,53.081]
[1748546036863,16.74600881,166.73,166.6,47.08]
[1748546037063,5.9996,166.65,166.6,47.08]
[1748546037264,16.74600881,166.73,166.6,53.0812]
[1748546037460,0.04243085,166.68,166.65,0.03987782]
[1748546037664,5.9992,166.66,166.65,0.03987782]
[1748546039966,0.04243085,166.68,166.65,0.03987782]
[1748546041271,0.04243085,166.68,166.66,47.08]
[1748546042565,0.04243085,166.68,166.65,0.03987782]
[1748546042767,0.04243085,166.68,166.59,1.9815]
[1748546042963,0.04243085,166.68,166.56,47.08]
[1748546043169,16.74600881,166.67,166.56,47.08]
[1748546043368,16.74600881,166.67,166.56,53.0826]
[1748546043563,16.74600881,166.67,166.56,47.08]
[1748546043770,0.04481433,166.63,166.6,0.04298403]
[1748546044270,6.001,166.61,166.6,0.04298403]
[1748546045372,16.79082314,166.63,166.5,5.9808]
[1748546045573,16.74600881,166.63,166.5,5.9808]
[1748546045771,18.08320881,166.63,166.5,5.9808]
[1748546045975,6.0034,166.55,166.5,5.9808]
[1748546046174,18.08320881,166.63,166.5,5.9808]
[1748546046472,0.04044119,166.58,166.55,0.04227928]
[1748546046868,6.0028,166.56,166.55,0.04227928]
[1748546047064,0.04044119,166.58,166.5,2.0115]
[1748546047264,158.96600881,166.61,166.5,2.0115]
[1748546047667,6.0046,166.51,166.5,2.0115]
[1748546047873,16.74600881,166.57,166.47,47.08]
[1748546048067,0.03824219,166.54,166.5,0.03793264]
[1748546048267,6.0046,166.51,166.5,0.03793264]
[1748546049078,6.0066,166.46,166.43,1.9868]
[1748546049282,16.74600881,166.53,166.43,1.9868]
[1748546049472,47.08,166.52,166.43,1.9868]
[1748546050272,47.08,166.52,166.46,0.03619295]
[1748546050273,6.006,166.47,166.46,0.03619295]
[1748546050467,518.68,166.48,166.23,47.1]
[1748546050672,16.74600881,166.43,166.25,3.9566]
[1748546050868,16.74600881,166.39,166.25,3.9566]
[1748546051076,16.74600881,166.35,166.18,565.78]
[1748546051268,47.1,166.38,166.2,4.117]
[1748546051269,6.0117,166.32,166.2,4.117]
[1748546051478,0.03964369,166.28,166.18,565.78]
[1748546051678,0.03826733,166.25,166.19,2.0471]
[1748546051876,0.03826733,166.25,166.24,6.0143]
[1748546052076,47.1,166.34,166.19,3.976]
[1748546052276,74.78094963,166.34,166.19,3.976]
[1748546052575,141.64,166.33,166.19,3.976]
[1748546052779,27.68094963,166.34,166.2,47.1]
[1748546052982,0.04494129,166.29,166.25,0.03826733]
[1748546053378,6.05764129,166.29,166.25,0.03826733]
[1748546053579,0.04494129,166.29,166.19,2.0471]
[1748546053775,188.68,166.33,166.19,2.0471]
[1748546054382,188.68,166.33,166.09,518.96]
[1748546054383,27.68094963,166.28,166.1,47.12]
[1748546054581,0.03817653,166.21,166.1,51.2475]
[1748546054783,2.0954,166.27,166.1,78.92844963]
[1748546054784,0.04586377,166.17,166.1,78.92844963]
[1748546054983,0.04586377,166.17,166.16,6.0172]
[1748546057278,49.2154,166.27,166.18,6.0162]
[1748546057479,6.0143,166.25,166.15,45.6]
[1748546057783,49.2154,166.27,166.18,6.0162]
[1748546058288,0.04494273,166.24,166.21,0.04420126]
[1748546058483,0.04519137,166.24,166.21,0.03784371]
[1748546060178,6.015,166.22,166.21,0.03784371]
[1748546061476,0.04519137,166.24,166.21,0.03784371]
[1748546062083,0.04519137,166.24,166.22,6.0147]
[1748546062279,0.04519137,166.24,166.21,0.03784371]
[1748546063385,0.04519137,166.24,166.11,2.0552]
[1748546063687,45.64,166.26,166.11,2.0552]
[1748546063883,2.0311,166.25,166.12,45.64]
[1748546064386,0.04025618,166.2,166.15,6.0173]
[1748546064587,0.04025618,166.2,166.12,45.60267105]
[1748546064889,6.05605618,166.2,166.15,6.0174]
[1748546065184,0.04025618,166.2,166.12,45.60267105]
[1748546065379,0.04025618,166.2,166.13,6.0182]
[1748546065380,6.0165,166.18,166.13,6.0182]
[1748546065585,0.04025618,166.2,166.12,45.60267105]
[1748546065884,0.04016493,166.18,166.15,6.0176]
[1748546066089,0.04050883,166.18,166.12,45.60267105]
[1748546067183,12.0178,166.39,166.12,45.60267105]
[1748546067390,27.68094963,166.33,166.12,45.60267105]
[1748546067788,6.0138,166.26,166.12,45.60267105]
[1748546067987,45.64,166.31,166.14,27.68094963]
[1748546068181,0.03838173,166.24,166.23,6.0144]
[1748546068383,0.03801198,166.25,166.22,0.04291645]
[1748546068584,0.04286431,166.25,166.22,0.04471763]
[1748546068788,0.04286431,166.25,166.22,2.14391763]
[1748546068985,0.04286431,166.25,166.24,6.0143]
[1748546069195,45.64,166.33,166.22,4.16641763]
[1748546069387,50.8966,166.37,166.22,4.1217]
[1748546070098,50.8966,166.37,166.27,6.0129]
[1748546070291,0.04464824,166.31,166.28,0.03954914]
[1748546070697,0.04464824,166.31,166.28,6.05214914]
[1748546070999,0.04464824,166.31,166.28,0.03954914]
[1748546071694,0.04464824,166.31,166.28,6.05214914]
[1748546072891,0.04464824,166.31,166.28,0.03954914]
[1748546073093,6.05674824,166.31,166.28,0.03954914]
[1748546074586,0.04464824,166.31,166.28,0.03954914]
[1748546075892,0.04464824,166.31,166.3,6.0121]
[1748546076090,6.0104,166.35,166.3,6.0121]
[1748546076285,47.5783,166.41,166.3,6.0121]
[1748546076499,6.0105,166.35,166.3,6.0121]
[1748546076898,6.0105,166.35,166.26,45.64]
[1748546077093,0.04415154,166.32,166.29,0.0448149]
[1748546077300,0.04415154,166.32,166.29,0.04084369]
[1748546077301,0.04511004,166.32,166.29,0.04084369]
[1748546077697,0.04511004,166.32,166.31,6.0114]
[1748546077897,0.04511004,166.32,166.31,51.6514]
[1748546078098,2.0943,166.43,166.34,6.0106]
[1748546078303,2.0943,166.43,166.32,2.0317]
[1748546078792,2.0943,166.43,166.32,8.0431]
[1748546078991,0.04208376,166.39,166.36,0.03914867]
[1748546079601,0.04208376,166.39,166.27,45.64]
[1748546079800,45.64,166.4,166.26,45.64]
[1748546079996,2.0451,166.39,166.26,45.64]
[1748546080195,2.0451,166.39,166.24,2.0317]
[1748546080196,2.0451,166.39,166.27,6.0132]
[1748546080403,2.0451,166.39,166.25,45.64]
[1748546080600,6.012,166.31,166.28,6.0128]
[1748546080797,6.012,166.31,166.3,0.04539201]
[1748546081004,0.04443197,166.34,166.3,0.04539201]
[1748546082801,0.04443197,166.34,166.3,44.16539201]
[1748546083195,0.04443197,166.34,166.31,2.1001]
[1748546084102,0.04443197,166.34,166.3,0.04539201]
[1748546085103,6.0117,166.31,166.3,0.04539201]
[1748546085806,0.04443197,166.34,166.3,0.04539201]
[1748546086508,6.0116,166.32,166.3,0.04539201]
[1748546086708,0.04443197,166.34,166.3,0.04539201]
[1748546087013,6.0116,166.32,166.3,0.04539201]
[1748546087916,6.0112,166.33,166.3,0.04539201]
[1748546088117,0.04443197,166.34,166.3,0.04539201]
[1748546088511,6.0114,166.32,166.3,0.04539201]
[1748546088813,0.04443197,166.34,166.3,0.04539201]
[1748546089616,6.0117,166.31,166.3,0.04539201]
[1748546093216,6.0114,166.32,166.3,0.04539201]
[1748546093518,0.04443197,166.34,166.3,0.04539201]
[1748546093912,6.0112,166.33,166.3,0.04539201]
[1748546094510,6.05523197,166.34,166.3,6.05739201]
[1748546094917,6.05523197,166.34,166.3,0.04539201]
[1748546095111,0.04443197,166.34,166.31,6.0117]
[1748546095609,0.04443197,166.34,166.3,0.04539201]
[1748546096316,6.05513197,166.34,166.3,6.05739201]
[1748546096510,0.04443197,166.34,166.3,0.04539201]
[1748546096713,0.04443197,166.34,166.31,6.0114]
[1748546096919,0.04443197,166.34,166.3,0.04539201]
[1748546098014,6.0116,166.32,166.3,0.04539201]
[1748546098715,0.04443197,166.34,166.3,0.04539201]
[1748546099019,6.0116,166.32,166.3,0.04539201]
[1748546099713,6.0117,166.31,166.3,0.04539201]
[1748546099908,6.0117,166.31,166.21,519.7]
[1748546099909,42.62,166.31,166.1,531.4783]
[1748546100109,3.96,166.3,166.17,2.0789]
[1748546100310,2.016,166.3,166.17,44.6989]
[1748546100519,42.62,166.32,166.17,44.6989]
[1748546100927,0.04471169,166.26,166.23,0.04353864]
[1748546101812,42.62,166.32,166.23,0.04353864]
[1748546102012,6.0115,166.32,166.23,4.05713864]
[1748546102209,562.06,166.36,166.23,4.05713864]
[1748546102414,562.06,166.36,166.23,4.0136]
[1748546103023,562.06,166.36,166.22,6.0149]
[1748546103024,0.03901276,166.31,166.22,6.0149]
[1748546103221,42.65901276,166.31,166.22,6.0149]
[1748546103522,42.65901276,166.31,166.2,42.62]
[1748546103719,42.62,166.31,166.2,42.62]
[1748546103918,0.03839598,166.27,166.24,0.04342781]
[1748546104916,42.62,166.35,166.24,0.04342781]
[1748546105113,42.62,166.35,166.25,42.62]
[1748546105312,5.4154,166.4,166.25,42.62]
[1748546105313,42.62,166.39,166.26,3.9567]
[1748546105922,0.04025409,166.34,166.33,6.011]
[1748546106124,0.03947133,166.35,166.33,6.011]
[1748546106328,0.03947133,166.35,166.32,0.04301602]
[1748546106627,52.62,166.43,166.34,6.0106]
[1748546106824,52.62,166.43,166.3,42.62]
[1748546107723,0.03831658,166.38,166.34,5.99815675]
[1748546107926,0.03831658,166.38,166.3,42.62]
[1748546108223,6.04751658,166.38,166.34,6.0106]
[1748546108428,6.04751658,166.38,166.3,42.62]
[1748546108429,0.03831658,166.38,166.3,42.62]
[1748546108727,0.03831658,166.38,166.35,6.01]
[1748546108923,0.03831658,166.38,166.35,48.63]
[1748546109329,42.62,166.47,166.35,42.62]
[1748546109525,42.62,166.47,166.36,4.0961]
[1748546109829,6.0083,166.41,166.36,10.1059]
[1748546110125,6.0083,166.41,166.36,4.0961]
[1748546110332,0.04149804,166.4,166.37,0.03967487]
[1748546110531,0.0382512,166.4,166.37,0.04341069]
[1748546110827,1.9947,166.5,166.37,0.04341069]
[1748546111024,1.9947,166.5,166.36,4.0961]
[1748546111224,16.81132766,166.48,166.36,4.0961]